Cogmind - Beta 16 @@@ ROGUE MODE // 2025.11.02 @ 21:26:01 Player: Red Box Result: Destroyed by HJ-XM9(R) with Subdweller Laser Performance ------------- Evolutions (0) 0 Regions Visited (2) 400 Robots Destroyed (29) 145 Value Destroyed (746) 746 Prototype IDs (16) 320 Alien Tech Used (0) 0 Bonus (0) 0 TOTAL SCORE: 1611 Bonus ------- None Cogmind --------- Core Integrity 0/250 Matter 271/300 Energy 100/100 System Corruption 3% Temperature Cool (6) Movement Treading (240) Ox1 Location -10/Subcaves Parts ------- > --- POWER (1) -------- (None) > --- PROPULSION (2) --- Improved Treads Subdweller Monowheel (fused) > --- UTILITY (2) ------ Large Storage Unit Hardened Light Armor Plating > --- WEAPON (2) ------- Improved Light Cannon Battle Cannon > --- INVENTORY (15) --- Flightbrick High-capacity Matter Pod (200) Makeshift Light Armor Plating Makeshift Kinetic Plating Scrap Shield Subdweller Beam Cannon Subdweller Beam Cannon Improved Assault Rifle Improved Assault Rifle Improved Assault Rifle Subdweller Shrapnel Launcher Peak State ------------ > --- POWER ------------ Subdweller Power Source > --- PROPULSION ------- Improved Treads Subdweller Monowheel > --- UTILITY ---------- Large Storage Unit Hardened Light Armor Plating > --- WEAPON ----------- Improved Light Cannon Improved Light Cannon > --- INVENTORY -------- Improved Treads Flightbrick High-capacity Matter Pod Subdweller Optics Hardened Light Armor Plating Scrap Shield Subdweller Beam Cannon Improved Assault Rifle Improved Assault Rifle Improved Assault Rifle Mace [Rating: 19] Favorites ----------- Power Ion Engine Engine Ion Engine Propulsion Aluminum Leg Treads Improved Treads Leg Aluminum Leg Wheel Wheel Utility Large Storage Unit Device Improved Terrain Scanner Storage Large Storage Unit Protection Hardened Light Armor Plating Weapon Improved Light Cannon Ballistic Gun Assault Rifle Ballistic Cannon Improved Light Cannon Impact Weapon Mace Build | -11 -10 -10 ------- Run | Yrd Mat Sub Slots Evolved . | . . . Power . | . . . Propulsion . | . . . Utility . | . . . Weapon . | . . . Parts Attached 32 | 7 11 14 Power 3 | 1 1 1 Engine 3 | 1 1 1 Core . | . . . Reactor . | . . . Propulsion 11 | 2 3 6 Treads 2 | . . 2 Leg 3 | 2 1 . Wheel 6 | . 2 4 Hover . | . . . Flight . | . . . Utility 9 | 2 3 4 Device 2 | 1 . 1 Storage 3 | 1 2 . Processor . | . . . Hackware . | . . . Protection 4 | . 1 3 Artifact . | . . . Weapon 9 | 2 4 3 Energy Gun . | . . . Energy Cannon . | . . . Ballistic Gun 3 | 2 1 . Ballistic Cannon 5 | . 3 2 Launcher . | . . . Special Weapon . | . . . Impact Weapon 1 | . . 1 Slashing Weapon . | . . . Piercing Weapon . | . . . Special Melee Weapon . | . . . Unidentified Prototypes 1 | . 1 . Parts Lost 8 | . . 8 Power 2 | . . 2 Propulsion 2 | . . 2 Utility 2 | . . 2 Weapon 2 | . . 2 Highest Loss Streak 4 | . . 4 To Critical Strikes . | . . . Average Backups 12 | 4 13 11 Power . | . . . Propulsion 3 | 2 4 2 Utility 3 | . 3 3 Weapon 4 | . 4 5 Tool/Special . | . . . Unused Backups 17 | . 5 12 Power . | . . . Propulsion 4 | . 3 1 Utility 4 | . . 4 Weapon 8 | . 1 7 Tool/Special 1 | . 1 . Average Slot Usage (%) 96 | . 99 93 Engine 11 | . 14 8 Treads 5 | . . 11 Leg 12 | . 23 . Wheel 10 | . 4 16 Device 6 | . 12 . Storage 14 | . 14 14 Protection 7 | . 1 13 Ballistic Gun 2 | . 5 . Ballistic Cannon 23 | . 22 25 Impact Weapon 1 | . . 2 Peak Build Rating 19 | 9 13 19 Average Rating 13 | 5 12 16 On Entrance 7 | . 9 12 Avg Prop Armor Cover (%) 8 | . . 8 Naked Turns . | . . . Heaviest Build 38 | 13 38 38 Greatest Support 23 | 20 20 23 Greatest Overweight (x) 3 | 1 1 3 Average Overweight (x) . | . . 1 Largest Inventory Capacity 15 | 8 15 15 Average Capacity 13 | 7 13 15 Most Carried 15 | 7 15 15 Average Carried 13 | 4 13 14 Final Capacity 15 | 8 15 15 Final Carried 15 | 7 15 15 Class Distribution -------------------- 100% | Mutant Dominant Class ---------------- Mutant | -10/Materials Mutant | -10/Subcaves Resources | -11 -10 -10 ----------- Run | Yrd Mat Sub Matter Collected 1344 | 236 654 454 Remotely . | . . . Salvage Created 555 | 18 364 173 Parts 49 | 3 38 8 Haulers Intercepted . | . . . Recyclers Shooed . | . . . Parts Field Recycled . | . . . Retrieved Matter . | . . . Parts Self-Destructed 10 | . . 10 Prevented . | . . . Parts Restored . | . . . Kills | -11 -10 -10 ------- Run | Yrd Mat Sub Combat Hostiles Destroyed 25 | . 17 8 Melee 2 | . . 2 Guns 5 | . 5 . Cannons 15 | . 12 3 Classes Destroyed 6 | 1 4 1 Worker 1 | . 1 . Tunneler 1 | 1 . . Watcher 2 | . 2 . Swarmer 9 | . 9 . Grunt 10 | . 8 2 Subdweller 6 | . . 6 Best Kill Streak 4 | 1 4 2 Combat Bots Only 3 | . 3 2 Max Kills in Single Turn 2 | 1 2 1 Gunslinging . | . . . Exploded . | . . . Melee 1 | . . 1 Uniques/NPCs Destroyed . | . . . Combat | -11 -10 -10 -------- Run | Yrd Mat Sub Hostile Shots Fired 142 | . 53 89 Missed 33 | . 14 19 Hits 109 | . 39 70 Projectile 109 | . 39 70 Critical Strikes 1 | . 1 . Damage Taken 2047 | . 418 1629 Core 267 | . 74 193 Absorbed by Shields . | . . . Regen/Repaired (Parts) 70 | . 70 . Core Remaining (%) 100 | 100 . . Volleys Fired 68 | 1 35 32 Largest 2 | 2 2 2 Hottest 66 | 40 66 66 Shots Fired 121 | 2 70 49 Gun 14 | 2 12 . Cannon 107 | . 58 49 Launcher . | . . . Special . | . . . Kinetic 121 | 2 70 49 Thermal . | . . . Explosive . | . . . Electromagnetic . | . . . Robot Hit Streak 8 | 1 6 8 Robot Miss Streak 4 | . 4 2 Penetration Max . | . . . Secondary Targets 1 | . 1 . Max Gunslinging Chain 1 | . 1 . Shots Hit Robots 84 | 1 38 45 Core Hits 31 | 1 21 9 Critical Kills . | . . . Critical Parts Destroyed 3 | . . 3 Critical Strikes 7 | . 1 6 Blast 2 | . 1 1 Smash 5 | . . 5 Melee Attacks 38 | . . 38 Impact 38 | . . 38 Slashing . | . . . Piercing . | . . . Sneak Attacks . | . . . Combat Hostiles . | . . . Follow-up Attacks . | . . . Damage Inflicted 2058 | 10 831 1217 Guns 72 | 10 62 . Cannons 1249 | . 769 480 Explosions . | . . . Melee 737 | . . 737 Ramming . | . . . Kinetic 1321 | 10 831 480 Thermal . | . . . Explosive . | . . . Electromagnetic . | . . . Impact 737 | . . 737 Slashing . | . . . Piercing . | . . . Highest Corruption 3 | . 3 3 Average Corruption 3 | . 3 3 Corruption Purged . | . . . Corruption Blocked . | . . . Effects 56 | . 28 28 Message Errors 12 | . 3 9 Matter Fused 14 | . 5 9 Heat Flow Errors 4 | . 3 1 Energy Discharges 10 | . 7 3 Parts Fused 2 | . 1 1 Data Loss (minor) 8 | . 4 4 Data Loss (major) 3 | . 3 . Alerts 3 | . 2 1 Overload Shots . | . . . Overflow Damage 131 | . . 131 Projectiles . | . . . Explosions . | . . . Melee 131 | . . 131 Knockbacks 19 | . 7 12 Impact 5 | . . 5 Kinetic 14 | . 7 7 Secondary . | . . . Self-Inflicted Damage . | . . . Shots . | . . . Rammed . | . . . Targets Rammed . | . . . Kicked . | . . . Crushed . | . . . Highest Temperature 286 | . 286 64 Average Temperature 59 | . 59 44 Received Heat Transfer 507 | . 129 378 Siege Activations . | . . . Martial Activations . | . . . Shielding Activations . | . . . Robots Disrupted . | . . . Combat Hostiles . | . . . Robots Corrupted 3 | . . 3 Combat Hostiles 3 | . . 3 Parts Fried 1 | . . 1 Impact Corruptions 5 | . . 5 Robots Melted . | . . . Combat Hostiles . | . . . Parts Melted . | . . . Heat Transferred . | . . . Parts Sabotaged . | . . . Parts Stolen . | . . . Parts Stripped . | . . . Power Chain Reactions . | . . . Alert | -11 -10 -10 ------- Run | Yrd Mat Sub Maximum Alert Level 1 | . 1 . Low Security (%) 98 | 100 98 . Level 1 1 | . 1 . Level 2 . | . . . Level 3 . | . . . Level 4 . | . . . Level 5 . | . . . High Security . | . . . Max Security . | . . . Peak Influence 228 | 5 228 . Initial . | . . . Average 76 | . 79 . Influence Increases 684 | 5 629 50 Destroy 0b10 Robot/C 380 | . 340 40 Destroy 0b10 Robot/NC 20 | 5 15 . Destroy Leader 84 | . 74 10 Successful Hack 15 | . 15 . Select Force Hacks 60 | . 60 . Disable Machine 15 | . 15 . Destroy Structure 5 | . 5 . Lose Combat Pursuer 105 | . 105 . Influence Decreases 684 | 5 401 278 Entered New Map 110 | . . 110 Time Decay 534 | 5 401 128 Lost Part 40 | . . 40 Squads Dispatched 4 | . 4 . Investigation 4 | . 4 . Extermination . | . . . Reinforcement . | . . . Assault . | . . . Garrison . | . . . Intercept . | . . . Searches Triggered . | . . . Construction Impeded . | . . . Haulers Reinforced . | . . . Active Scanning Responses . | . . . Cargo Convoy Interrupts . | . . . Stealth | -11 -10 -10 --------- Run | Yrd Mat Sub Distress Signals 2 | . 2 . Communications Jammed . | . . . Distress Signals . | . . . Times Spotted 35 | . 24 11 Peak Tracking Total 6 | . 6 3 Tactical Retreats 5 | . 4 1 Traps | -11 -10 -10 ------- Run | Yrd Mat Sub Traps Triggered 6 | . 1 5 Indirectly . | . . . Trap Hack Attempts . | . . . Triggered . | . . . Disarmed . | . . . Reprogrammed . | . . . Reused 1 | . . 1 Traps Extracted . | . . . Installed 1 | . . 1 Triggered . | . . . Most Traps Carried 1 | . . 1 Machines | -11 -10 -10 ---------- Run | Yrd Mat Sub Machines Disabled 2 | . 1 1 Max in Single Turn 1 | . 1 1 Machines Repaired . | . . . Machines Dismantled . | . . . Machines Sabotaged . | . . . Overloaded Fab Kills . | . . . Hacking | -11 -10 -10 --------- Run | Yrd Mat Sub Machines Accessed 14 | . 11 3 Terminals 8 | . 8 . Fabricators . | . . . Repair Stations 1 | . 1 . Recycling Units 2 | . 2 . Scanalyzers . | . . . Garrison Access . | . . . Total Hacks 36 | . 32 4 Successful 25 | . 21 4 Failed 11 | . 11 . Catastrophic 3 | . 3 . Database Lockouts . | . . . Manual 17 | . 17 . Terminals 21 | . 21 . Fabricators . | . . . Repair Stations 5 | . 5 . Recycling Units 6 | . 6 . Scanalyzers . | . . . Garrison Access . | . . . Terminal Hacks 11 | . 7 4 Record 1 | . . 1 Robot Analysis 3 | . 3 . Prototype ID Bank 2 | . 2 . Open Door 1 | . . 1 Locate Traps 2 | . 2 . Proto ID Catalog 1 | . . 1 Release Object 1 | . . 1 Fabricator Hacks . | . . . Repair Station Hacks 3 | . 3 . Scan Component 2 | . 2 . Repair 1 | . 1 . Recycling Unit Hacks 2 | . 2 . Retrieve Components 2 | . 2 . Scanalyzer . | . . . Garrison Access Hacks . | . . . Unauthorized Hacks 9 | . 9 . Terminals 6 | . 6 . Track 1 | . 1 . Botnet 3 | . 3 . Operators 2 | . 2 . Fabricators . | . . . Repair Stations . | . . . Recycling Units 3 | . 3 . Reject 1 | . 1 . Tunnel 2 | . 2 . Scanalyzers . | . . . Garrison Access . | . . . Data Cores Recovered . | . . . Used . | . . . Hacking Detections 10 | . 10 . Full Trace Events 2 | . 2 . Feedback Events . | . . . Feedback Blocked . | . . . Robot Schematics Acquired . | . . . Robots Built . | . . . Authchips . | . . . Time . | . . . Total Robot Build Rating . | . . . Part Schematics Acquired . | . . . Parts Built . | . . . Authchips . | . . . Time . | . . . Total Part Build Rating . | . . . Part Studies Acquired . | . . . Parts Repaired 1 | . 1 . Time 44 | . 44 . Parts Recycled . | . . . Recycled Matter . | . . . Retrieved Matter . | . . . Retrieved Components 11 | . 11 . Parts Scanalyzed . | . . . Part Schematics Acquired . | . . . Parts Damaged . | . . . Bothacking | -11 -10 -10 ------------ Run | Yrd Mat Sub Used RIF Installer . | . . . Robots Hacked . | . . . Non-combat . | . . . Combat . | . . . Robot Hacks Applied . | . . . Relay Couplers Released . | . . . Fabnet Peak Effective % . | . . . Robots Rewired . | . . . Allies Hacked . | . . . Hacks Repelled . | . . . Allies | -11 -10 -10 -------- Run | Yrd Mat Sub Total Allies . | . . . Largest Group . | . . . Highest-Rated Group . | . . . Highest-Rated Ally . | . . . Total Orders . | . . . Ally Attacks . | . . . Total Damage . | . . . Kills . | . . . Allies Corrupted . | . . . Allies Melted . | . . . Intel | -11 -10 -10 ------- Run | Yrd Mat Sub Active Infowar (turns) 1557 | 15 1541 1 Optics 1 | . . 1 Terrain 1556 | 15 1541 . Robot Analysis Total 3 | . 3 . Derelict Logs Recovered 1 | . . 1 Drone Launches . | . . . Drone Recoveries . | . . . Exploration | -11 -10 -10 ------------- Run | Yrd Mat Sub Turns Passed 3390 | 88 1733 1569 Spaces Moved 2062 | 60 993 1009 Core 9 | 9 . . Treads 82 | . . 82 Legs 834 | 51 783 . Wheels 1137 | . 210 927 Hover . | . . . Flight . | . . . Fastest Speed 50 | 50 95 95 Average Speed 138 | 113 151 126 Slowest Speed 240 | 120 190 240 Overloaded Moves . | . . . Propulsion Burnouts . | . . . Robots Hopped . | . . . Potential Cave-ins . | . . . Cave-ins Triggered . | . . . Exploration Rate (%) 55 | 5 98 62 Regions Visited 2 Branch Regions 1 Pre-discovered Areas 2 | . 2 . Known Exits Taken . | . . . Unknown Exits Taken 2 | 1 1 . Scrap Searched 6 | . . 6 Spaces Dug 1 | . . 1 Terrain Destroyed 2 | . 1 1 Melee 1 | . . 1 Projectile 1 | . 1 . AOE . | . . . Terrain Rammed . | . . . Walls Destroyed . | . . . Machines Disabled . | . . . Actions | -11 -10 -10 --------- Run | Yrd Mat Sub Total 2415 | 74 1154 1187 Wait 134 | . 81 53 Move 2060 | 59 992 1009 Hop . | . . . Pick Up 41 | 7 20 14 Fast Attach 12 | 7 1 4 Attach 13 | . 6 7 Detach 1 | . . 1 Swap 17 | . 4 13 Drop 30 | . 15 15 Fire 68 | 1 35 32 Melee 38 | . . 38 Ram . | . . . Kick . | . . . Crush . | . . . Escape Stasis . | . . . Rewire . | . . . Trap 1 | . . 1 Miscellaneous . | . . . Route ------- -11/Scrapyard -10/Materials (discovered 6 exits: [*Mat x3] / [*Min x2] / *Sub) -10/Subcaves (discovered 1 exit: [*Mat]) History --------- Turn | Location | Event 16 | -11/Scrapyard | Discovered new exit (range 15) 89 | -11/Scrapyard | Entered Materials 220 | -10/Materials | Discovered new exit (range 5) 251 | -10/Materials | Discovered new exit (range 4) 306 | -10/Materials | Build established: Mutant 403 | -10/Materials | Discovered new exit (range 9) 952 | -10/Materials | Discovered new exit (range 15) 1216 | -10/Materials | Discovered new exit (range 13) 1517 | -10/Materials | Discovered new exit (range 15) 1792 | -10/Materials | Repaired Broken Imp. Light Cannon? 1822 | -10/Materials | Entered Subcaves 1823 | -10/Subcaves | Approached by a straggling Scientist 1936 | -10/Subcaves | Core integrity fell below 50% 1949 | -10/Subcaves | Lost 4 parts (1p1n1u1w) 2004 | -10/Subcaves | Learned location of 1 exit from Materials 2047 | -10/Subcaves | Visited 4L-MR0's lab 2062 | -10/Subcaves | Found Flightbrick 2397 | -10/Subcaves | Shifting Twisted Machinery released Scrap Shield 2400 | -10/Subcaves | Shifting Twisted Machinery released Piercing Trap 2823 | -10/Subcaves | Shifting Twisted Machinery released Sub. Beam Cannon 2848 | -10/Subcaves | Shifting Twisted Machinery released Sub. Laser 2887 | -10/Subcaves | Disturbed a concealed Subdweller 2894 | -10/Subcaves | Core integrity fell below 20% 2958 | -10/Subcaves | Lost 3 parts (1p1n1u) 3275 | -10/Subcaves | Discovered new exit (range 10) 3391 | -10/Subcaves | Destroyed by HJ-XM9(R) with Subdweller Laser Last Messages --------------- 03210_ Acquired 15 matter. 03275_ EXIT=FOUND 03283_ Dropped Mace. 03284_ Acquired Sub. Shrapnel Launcher. 03294_ Searching scrap... 03294_ Found Battle Rifle. 03294_ Found 38 Matter. 03295_ Acquired 38 matter. 03306_ System corrupted: IFF burst signal emitted. 03325_ System corrupted: Matter fused (-9). 03348_ Connecting with UFD SUBCON Station... >>Open Door Sealed Heavy Doors opened. 03354_ Connecting with SUBCON Basin Controls... >>Release Inventory Accessing inventory controls... Collection purity confirmed 100%... Ejecting SUBCON Basin... Delivery behind schedule, handle with care! 03369_ System corrupted: Component data lost. Map ----- +----------------------------------------------------+ | | | | | | | | | ?????????????????????????????????????????????????? | | ?????????????????????????????????????????????????? | | ?????????????????????????????????????????????????? | | ?????????????????????????????????????????????????? | | ?????????????????????????????????????????????????? | | ??????????########???????????????????????????????? | | ??????????#""""""#???????????????????????????????? | | ??????????#""""X"#???????????????????????????????? | | ??????????# & "#???????????????????????????????? | | ??????????# "#???##??????????????????????????? | | ??????????#" """"#????